[Event "Titled Tuesday Blitz April 26 Late 2022"]
[White "Mirza, Diana"]
[Black "Ricaurte Lopez, Juan Carlos"]
[WhiteFideId "2503999"]
[BlackFideId "3600327"]
[WhiteElo "1813"]
[BlackElo "2209"]
[Result "1-0"]
[Round "10"]
[TimeControl "180+1"]
[Date "2022.04.26"]
[WhiteClock "0:00:12"]
[BlackClock "0:00:01"]

1. g3 {[%clk 0:03:00]}  d5 {[%clk 0:02:58]} 2. Bg2 {[%clk 0:03:01]}  e5 {[%clk 0:02:57]} 3. d3 {[%clk 0:03:01]}  Nc6 {[%clk 0:02:55]} 4. Nf3 {[%clk 0:03:02]}  Bg4 {[%clk 0:02:53]} 5. O-O {[%clk 0:03:02]}  Qd7 {[%clk 0:02:52]} 6. c4 {[%clk 0:03:00]}  dxc4 {[%clk 0:02:47]} 7. Qa4 {[%clk 0:02:59]}  cxd3 {[%clk 0:02:39]} 8. exd3 {[%clk 0:02:34]}  f6 {[%clk 0:02:24]} 9. Be3 {[%clk 0:01:43]}  a6 {[%clk 0:02:08]} 10. d4 {[%clk 0:01:42]}  b5 {[%clk 0:01:51]} 11. Qc2 {[%clk 0:01:24]}  Bf5 {[%clk 0:01:40]} 12. Qe2 {[%clk 0:01:14]}  e4 {[%clk 0:01:07]} 13. Nh4 {[%clk 0:00:57]}  Nge7 {[%clk 0:00:57]} 14. Nxf5 {[%clk 0:00:50]}  Qxf5 {[%clk 0:00:56]} 15. Nc3 {[%clk 0:00:45]}  O-O-O {[%clk 0:00:43]} 16. Bxe4 {[%clk 0:00:41]}  Qe6 {[%clk 0:00:38]} 17. d5 {[%clk 0:00:34]}  Nxd5 {[%clk 0:00:25]} 18. Bxd5 {[%clk 0:00:34]}  Rxd5 {[%clk 0:00:24]} 19. Nxd5 {[%clk 0:00:35]}  Qxd5 {[%clk 0:00:24]} 20. Rfd1 {[%clk 0:00:32]}  Qe6 {[%clk 0:00:22]} 21. Rac1 {[%clk 0:00:30]}  Be7 {[%clk 0:00:17]} 22. Qf3 {[%clk 0:00:28]}  Kb7 {[%clk 0:00:15]} 23. a4 {[%clk 0:00:20]}  Rd8 {[%clk 0:00:14]} 24. axb5 {[%clk 0:00:20]}  axb5 {[%clk 0:00:13]} 25. Rxd8 {[%clk 0:00:19]}  Bxd8 {[%clk 0:00:12]} 26. Qf4 {[%clk 0:00:17]}  Be7 {[%clk 0:00:11]} 27. Qf3 {[%clk 0:00:15]}  Bd8 {[%clk 0:00:09]} 28. Qe2 {[%clk 0:00:15]}  Qe5 {[%clk 0:00:06]} 29. Rc5 {[%clk 0:00:13]}  Qe4 {[%clk 0:00:03]} 30. Qxb5+ {[%clk 0:00:13]}  Kc8 {[%clk 0:00:03]} 31. Qxc6 {[%clk 0:00:10]}  Qxc6 {[%clk 0:00:03]} 32. Rxc6 {[%clk 0:00:11]}  Kd7 {[%clk 0:00:03]} 33. Rc3 {[%clk 0:00:11]}  c6 {[%clk 0:00:04]} 34. Bf4 {[%clk 0:00:12]}  Be7 {[%clk 0:00:03]} 35. Rb3 {[%clk 0:00:10]}  c5 {[%clk 0:00:04]} 36. Rb7+ {[%clk 0:00:10]}  Ke6 {[%clk 0:00:04]} 37. Rxe7+ {[%clk 0:00:10]}  Kxe7 {[%clk 0:00:03]} 38. Kf1 {[%clk 0:00:10]}  Ke6 {[%clk 0:00:04]} 39. Ke2 {[%clk 0:00:11]}  Kd5 {[%clk 0:00:04]} 40. Be3 {[%clk 0:00:11]}  g5 {[%clk 0:00:03]} 41. Kd3 {[%clk 0:00:12]}  h5 {[%clk 0:00:03]} 42. h4 {[%clk 0:00:12]}  gxh4 {[%clk 0:00:02]} 43. gxh4 {[%clk 0:00:12]}  f5 {[%clk 0:00:03]} 44. Bg5 {[%clk 0:00:12]}  c4+ {[%clk 0:00:02]} 45. Kc3 {[%clk 0:00:12]}  Kc5 {[%clk 0:00:01]} 46. f4 {[%clk 0:00:12]} 1-0


[Site "https://www.chess.com"]

[Event "Titled Tuesday Blitz April 26 Late 2022"]
[White "Moraes, Nelson da Silva"]
[Black "Dudzinski, Pawel"]
[WhiteFideId "2140772"]
[BlackFideId "1117890"]
[WhiteElo "2123"]
[BlackElo "2033"]
[Result "1-0"]
[Round "10"]
[TimeControl "180+1"]
[Date "2022.04.26"]
[WhiteClock "0:01:46"]
[BlackClock "0:00:22"]

1. e4 {[%clk 0:03:00]}  c6 {[%clk 0:02:55]} 2. d4 {[%clk 0:03:00]}  d5 {[%clk 0:02:56]} 3. exd5 {[%clk 0:02:59]}  cxd5 {[%clk 0:02:57]} 4. c4 {[%clk 0:03:00]}  Nf6 {[%clk 0:02:58]} 5. Nc3 {[%clk 0:02:58]}  g6 {[%clk 0:02:58]} 6. cxd5 {[%clk 0:02:54]}  Bg7 {[%clk 0:02:57]} 7. Nf3 {[%clk 0:02:48]}  O-O {[%clk 0:02:58]} 8. Bc4 {[%clk 0:02:46]}  Nbd7 {[%clk 0:02:58]} 9. O-O {[%clk 0:02:45]}  Nb6 {[%clk 0:02:59]} 10. Bb3 {[%clk 0:02:42]}  Nfxd5 {[%clk 0:02:59]} 11. h3 {[%clk 0:02:38]}  h6 {[%clk 0:02:58]} 12. Re1 {[%clk 0:02:37]}  Be6 {[%clk 0:02:56]} 13. Ne5 {[%clk 0:02:37]}  Nxc3 {[%clk 0:02:48]} 14. bxc3 {[%clk 0:02:38]}  Bxb3 {[%clk 0:02:44]} 15. axb3 {[%clk 0:02:38]}  e6 {[%clk 0:02:29]} 16. Ba3 {[%clk 0:02:34]}  Re8 {[%clk 0:02:28]} 17. Qf3 {[%clk 0:02:34]}  Bxe5 {[%clk 0:02:21]} 18. Rxe5 {[%clk 0:02:33]}  Kg7 {[%clk 0:02:09]} 19. Qxb7 {[%clk 0:02:30]}  Nd7 {[%clk 0:01:50]} 20. Re3 {[%clk 0:02:23]}  Rb8 {[%clk 0:01:43]} 21. Qxa7 {[%clk 0:02:21]}  Rxb3 {[%clk 0:01:14]} 22. Bb4 {[%clk 0:02:20]}  Nf6 {[%clk 0:01:03]} 23. Rf3 {[%clk 0:02:13]}  Qd7 {[%clk 0:00:57]} 24. Qxd7 {[%clk 0:02:07]}  Nxd7 {[%clk 0:00:58]} 25. Ra7 {[%clk 0:02:04]}  Nf6 {[%clk 0:00:57]} 26. Bd6 {[%clk 0:02:01]}  Rb1+ {[%clk 0:00:43]} 27. Kh2 {[%clk 0:01:59]}  Nh5 {[%clk 0:00:22]} 28. Rfxf7+ {[%clk 0:01:56]}  Kg8 {[%clk 0:00:22]} 29. g4 {[%clk 0:01:49]}  Rb2 {[%clk 0:00:22]} 30. gxh5 {[%clk 0:01:47]}  Rxf2+ {[%clk 0:00:22]} 31. Rxf2 {[%clk 0:01:46]} 1-0


[Site "https://www.chess.com"]

[Event "Titled Tuesday Blitz April 26 Late 2022"]
[White "Muradli, Mahammad"]
[Black "Andreikin, Dmitry"]
[WhiteFideId "13409301"]
[BlackFideId "4158814"]
[WhiteElo "2611"]
[BlackElo "2736"]
[Result "0-1"]
[Round "10"]
[TimeControl "180+1"]
[Date "2022.04.26"]
[WhiteClock "0:00:01"]
[BlackClock "0:00:11"]

1. d4 {[%clk 0:03:00]}  d5 {[%clk 0:03:00]} 2. c4 {[%clk 0:03:00]}  dxc4 {[%clk 0:03:01]} 3. Nf3 {[%clk 0:02:59]}  Nf6 {[%clk 0:02:59]} 4. e3 {[%clk 0:03:00]}  e6 {[%clk 0:03:00]} 5. Bxc4 {[%clk 0:03:00]}  c5 {[%clk 0:03:00]} 6. O-O {[%clk 0:02:58]}  cxd4 {[%clk 0:03:00]} 7. exd4 {[%clk 0:02:56]}  Nbd7 {[%clk 0:02:57]} 8. Nc3 {[%clk 0:02:55]}  Nb6 {[%clk 0:02:55]} 9. Bd3 {[%clk 0:02:55]}  Be7 {[%clk 0:02:54]} 10. Qe2 {[%clk 0:02:56]}  O-O {[%clk 0:02:54]} 11. Rd1 {[%clk 0:02:57]}  Bd7 {[%clk 0:02:53]} 12. Ne5 {[%clk 0:02:47]}  Rc8 {[%clk 0:02:49]} 13. Bg5 {[%clk 0:02:26]}  Bc6 {[%clk 0:02:49]} 14. Rac1 {[%clk 0:02:25]}  h6 {[%clk 0:02:34]} 15. Bh4 {[%clk 0:02:23]}  Nfd5 {[%clk 0:02:24]} 16. Bg3 {[%clk 0:02:22]}  Bg5 {[%clk 0:02:21]} 17. Ra1 {[%clk 0:02:12]}  Nxc3 {[%clk 0:02:16]} 18. bxc3 {[%clk 0:02:13]}  Ba4 {[%clk 0:02:15]} 19. h4 {[%clk 0:01:55]}  Bxd1 {[%clk 0:02:07]} 20. Rxd1 {[%clk 0:01:56]}  Be7 {[%clk 0:01:55]} 21. c4 {[%clk 0:01:51]}  Nd7 {[%clk 0:01:49]} 22. Qe4 {[%clk 0:01:44]}  Nf6 {[%clk 0:01:49]} 23. Qxb7 {[%clk 0:01:44]}  Bd6 {[%clk 0:01:40]} 24. c5 {[%clk 0:01:31]}  Bxe5 {[%clk 0:01:40]} 25. Bxe5 {[%clk 0:01:31]}  Ng4 {[%clk 0:01:37]} 26. Bg3 {[%clk 0:01:06]}  Qa5 {[%clk 0:01:32]} 27. Bd6 {[%clk 0:00:47]}  Rfd8 {[%clk 0:01:23]} 28. Be7 {[%clk 0:00:33]}  Qxa2 {[%clk 0:01:23]} 29. Rf1 {[%clk 0:00:24]}  Rb8 {[%clk 0:01:07]} 30. Qe4 {[%clk 0:00:23]}  f5 {[%clk 0:01:07]} 31. Qf4 {[%clk 0:00:17]}  Re8 {[%clk 0:00:53]} 32. Bd6 {[%clk 0:00:18]}  Rb2 {[%clk 0:00:50]} 33. c6 {[%clk 0:00:12]}  Rd2 {[%clk 0:00:31]} 34. Bb1 {[%clk 0:00:05]}  Qb2 {[%clk 0:00:32]} 35. Bc5 {[%clk 0:00:04]}  Nxf2 {[%clk 0:00:23]} 36. Bxf5 {[%clk 0:00:03]}  exf5 {[%clk 0:00:17]} 37. Qxf5 {[%clk 0:00:03]}  Qa2 {[%clk 0:00:11]} 38. c7 {[%clk 0:00:02]}  Ne4 {[%clk 0:00:11]} 39. Qf7+ {[%clk 0:00:01]}  Qxf7 {[%clk 0:00:11]} 0-1


[Site "https://www.chess.com"]

[Event "Titled Tuesday Blitz April 26 Late 2022"]
[White "Naroditsky, Daniel"]
[Black "Kollars, Dmitrij"]
[WhiteFideId "2026961"]
[BlackFideId "12909572"]
[WhiteElo "2608"]
[BlackElo "2584"]
[Result "0-1"]
[Round "10"]
[TimeControl "180+1"]
[Date "2022.04.26"]
[WhiteClock "0:00:05"]
[BlackClock "0:00:09"]

1. Nf3 {[%clk 0:03:00]}  d5 {[%clk 0:02:59]} 2. e3 {[%clk 0:03:00]}  Nf6 {[%clk 0:02:56]} 3. c4 {[%clk 0:03:00]}  e6 {[%clk 0:02:56]} 4. Nc3 {[%clk 0:02:59]}  Be7 {[%clk 0:02:55]} 5. Qc2 {[%clk 0:02:59]}  c5 {[%clk 0:02:51]} 6. cxd5 {[%clk 0:02:57]}  Nxd5 {[%clk 0:02:52]} 7. a3 {[%clk 0:02:56]}  Nc6 {[%clk 0:02:51]} 8. Bd3 {[%clk 0:02:44]}  a6 {[%clk 0:02:32]} 9. Nxd5 {[%clk 0:02:37]}  exd5 {[%clk 0:02:31]} 10. b3 {[%clk 0:02:38]}  Bf6 {[%clk 0:02:22]} 11. Rb1 {[%clk 0:02:34]}  Qd6 {[%clk 0:02:20]} 12. Bb2 {[%clk 0:02:31]}  Bxb2 {[%clk 0:02:17]} 13. Rxb2 {[%clk 0:02:32]}  Bg4 {[%clk 0:02:12]} 14. O-O {[%clk 0:02:30]}  Bxf3 {[%clk 0:02:11]} 15. gxf3 {[%clk 0:02:30]}  Ne5 {[%clk 0:02:04]} 16. Be2 {[%clk 0:02:30]}  d4 {[%clk 0:02:01]} 17. Qe4 {[%clk 0:02:27]}  O-O {[%clk 0:01:23]} 18. Qxb7 {[%clk 0:02:27]}  d3 {[%clk 0:01:17]} 19. Bd1 {[%clk 0:02:27]}  Rab8 {[%clk 0:01:12]} 20. Qe4 {[%clk 0:02:18]}  f5 {[%clk 0:01:12]} 21. Qh4 {[%clk 0:02:09]}  f4 {[%clk 0:01:07]} 22. Kh1 {[%clk 0:02:05]}  Rf6 {[%clk 0:01:01]} 23. Rg1 {[%clk 0:02:05]}  Rbf8 {[%clk 0:01:01]} 24. b4 {[%clk 0:02:04]}  c4 {[%clk 0:01:01]} 25. b5 {[%clk 0:02:04]}  Qd5 {[%clk 0:00:42]} 26. e4 {[%clk 0:01:17]}  Qd4 {[%clk 0:00:31]} 27. Rb4 {[%clk 0:01:04]}  axb5 {[%clk 0:00:29]} 28. Rxb5 {[%clk 0:00:59]}  Ng6 {[%clk 0:00:30]} 29. Rd5 {[%clk 0:00:41]}  Qxd5 {[%clk 0:00:18]} 30. Qxf6 {[%clk 0:00:42]}  Rxf6 {[%clk 0:00:18]} 31. exd5 {[%clk 0:00:42]}  Rf5 {[%clk 0:00:19]} 32. Ba4 {[%clk 0:00:42]}  Rxd5 {[%clk 0:00:18]} 33. Rc1 {[%clk 0:00:43]}  Ne5 {[%clk 0:00:16]} 34. Bd1 {[%clk 0:00:41]}  Kf7 {[%clk 0:00:15]} 35. a4 {[%clk 0:00:41]}  Ke6 {[%clk 0:00:14]} 36. Rb1 {[%clk 0:00:40]}  Ra5 {[%clk 0:00:13]} 37. Rb7 {[%clk 0:00:38]}  g6 {[%clk 0:00:11]} 38. Kg2 {[%clk 0:00:37]}  Ra6 {[%clk 0:00:08]} 39. Rb8 {[%clk 0:00:24]}  Kd5 {[%clk 0:00:08]} 40. Kf1 {[%clk 0:00:23]}  Kc5 {[%clk 0:00:07]} 41. Re8 {[%clk 0:00:21]}  Kd4 {[%clk 0:00:06]} 42. Rd8+ {[%clk 0:00:20]}  Kc5 {[%clk 0:00:07]} 43. Re8 {[%clk 0:00:20]}  Kd5 {[%clk 0:00:07]} 44. Rd8+ {[%clk 0:00:21]}  Rd6 {[%clk 0:00:07]} 45. Rb8 {[%clk 0:00:20]}  Kc5 {[%clk 0:00:07]} 46. Re8 {[%clk 0:00:10]}  Nc6 {[%clk 0:00:06]} 47. Rc8 {[%clk 0:00:09]}  Kb4 {[%clk 0:00:06]} 48. Rf8 {[%clk 0:00:08]}  Nd4 {[%clk 0:00:06]} 49. Rxf4 {[%clk 0:00:08]}  c3 {[%clk 0:00:05]} 50. dxc3+ {[%clk 0:00:08]}  Kxc3 {[%clk 0:00:06]} 51. a5 {[%clk 0:00:05]}  Ra6 {[%clk 0:00:06]} 52. Rf8 {[%clk 0:00:03]}  Rxa5 {[%clk 0:00:07]} 53. Rb8 {[%clk 0:00:02]}  Ra1 {[%clk 0:00:06]} 54. Rc8+ {[%clk 0:00:01]}  Kd2 {[%clk 0:00:06]} 55. Kg1 {[%clk 0:00:02]}  Rxd1+ {[%clk 0:00:07]} 56. Kg2 {[%clk 0:00:03]}  Ne2 {[%clk 0:00:07]} 57. Rd8 {[%clk 0:00:04]}  Rg1+ {[%clk 0:00:08]} 58. Kh3 {[%clk 0:00:04]}  Nf4+ {[%clk 0:00:08]} 59. Kh4 {[%clk 0:00:05]}  g5# {[%clk 0:00:09]} 0-1


[Site "https://www.chess.com"]

[Event "Titled Tuesday Blitz April 26 Late 2022"]
[White "Nazaretyan, Tigran"]
[Black "Vega Gutierrez, Sabrina"]
[WhiteFideId "24162345"]
[BlackFideId "2219026"]
[WhiteElo "2225"]
[BlackElo "2286"]
[Result "1-0"]
[Round "10"]
[TimeControl "180+1"]
[Date "2022.04.26"]
[WhiteClock "0:00:39"]
[BlackClock "0:00:02"]

1. d4 {[%clk 0:03:00]}  d5 {[%clk 0:02:59]} 2. c4 {[%clk 0:03:00]}  e6 {[%clk 0:02:59]} 3. Nf3 {[%clk 0:03:00]}  c6 {[%clk 0:03:00]} 4. Nbd2 {[%clk 0:02:57]}  f5 {[%clk 0:02:56]} 5. g3 {[%clk 0:02:55]}  Nf6 {[%clk 0:02:55]} 6. Bg2 {[%clk 0:02:56]}  Nbd7 {[%clk 0:02:54]} 7. O-O {[%clk 0:02:56]}  Bd6 {[%clk 0:02:54]} 8. b3 {[%clk 0:02:57]}  O-O {[%clk 0:02:53]} 9. Bb2 {[%clk 0:02:57]}  b6 {[%clk 0:02:43]} 10. Rc1 {[%clk 0:02:56]}  Bb7 {[%clk 0:02:43]} 11. Ne5 {[%clk 0:02:55]}  c5 {[%clk 0:02:36]} 12. e3 {[%clk 0:02:53]}  Ne4 {[%clk 0:02:32]} 13. Nxe4 {[%clk 0:02:36]}  fxe4 {[%clk 0:02:29]} 14. Nxd7 {[%clk 0:02:36]}  Qxd7 {[%clk 0:02:29]} 15. dxc5 {[%clk 0:02:36]}  Bxc5 {[%clk 0:02:26]} 16. Bxe4 {[%clk 0:02:35]}  Rad8 {[%clk 0:02:00]} 17. cxd5 {[%clk 0:02:30]}  Bxd5 {[%clk 0:01:46]} 18. Bxd5 {[%clk 0:02:27]}  Qxd5 {[%clk 0:01:47]} 19. Qg4 {[%clk 0:02:22]}  g6 {[%clk 0:01:15]} 20. Rcd1 {[%clk 0:02:08]}  Qf5 {[%clk 0:01:09]} 21. Qe2 {[%clk 0:01:42]}  h5 {[%clk 0:00:42]} 22. h4 {[%clk 0:01:40]}  Qe4 {[%clk 0:00:40]} 23. Rxd8 {[%clk 0:01:35]}  Rxd8 {[%clk 0:00:39]} 24. Rd1 {[%clk 0:01:35]}  Rxd1+ {[%clk 0:00:34]} 25. Qxd1 {[%clk 0:01:35]}  Be7 {[%clk 0:00:34]} 26. Bc3 {[%clk 0:01:18]}  e5 {[%clk 0:00:28]} 27. Qd7 {[%clk 0:01:13]}  Kf7 {[%clk 0:00:26]} 28. Qc7 {[%clk 0:01:02]}  Ke6 {[%clk 0:00:25]} 29. Qxa7 {[%clk 0:01:00]}  Qg4 {[%clk 0:00:14]} 30. Qxb6+ {[%clk 0:00:55]}  Kf5 {[%clk 0:00:13]} 31. Qb5 {[%clk 0:00:48]}  Qd1+ {[%clk 0:00:04]} 32. Qf1 {[%clk 0:00:48]}  Qc2 {[%clk 0:00:03]} 33. Qa1 {[%clk 0:00:43]}  Bc5 {[%clk 0:00:02]} 34. Bxe5 {[%clk 0:00:39]} 1-0


[Site "https://www.chess.com"]

[Event "Titled Tuesday Blitz April 26 Late 2022"]
[White "Nozdrachev, Leonid"]
[Black "Fishbein, Alexander"]
[WhiteFideId "24113433"]
[BlackFideId "2000377"]
[WhiteElo "2242"]
[BlackElo "2442"]
[Result "0-1"]
[Round "10"]
[TimeControl "180+1"]
[Date "2022.04.26"]
[WhiteClock "0:00:03"]
[BlackClock "0:00:08"]

1. e4 {[%clk 0:03:00]}  c5 {[%clk 0:02:58]} 2. c3 {[%clk 0:03:00]}  e6 {[%clk 0:02:58]} 3. d4 {[%clk 0:02:58]}  d5 {[%clk 0:02:58]} 4. e5 {[%clk 0:02:57]}  Nc6 {[%clk 0:02:58]} 5. Nf3 {[%clk 0:02:56]}  Nh6 {[%clk 0:02:58]} 6. dxc5 {[%clk 0:02:50]}  Bxc5 {[%clk 0:02:53]} 7. Bxh6 {[%clk 0:02:48]}  gxh6 {[%clk 0:02:54]} 8. Bd3 {[%clk 0:02:46]}  Bd7 {[%clk 0:02:46]} 9. O-O {[%clk 0:02:41]}  Qc7 {[%clk 0:02:44]} 10. c4 {[%clk 0:02:35]}  dxc4 {[%clk 0:02:39]} 11. Bxc4 {[%clk 0:02:36]}  O-O-O {[%clk 0:02:38]} 12. Nc3 {[%clk 0:02:33]}  Kb8 {[%clk 0:02:33]} 13. Nb5 {[%clk 0:02:31]}  Qb6 {[%clk 0:02:31]} 14. Nd6 {[%clk 0:02:28]}  Be8 {[%clk 0:02:24]} 15. Qe2 {[%clk 0:02:20]}  Bxd6 {[%clk 0:02:07]} 16. exd6 {[%clk 0:02:19]}  Rxd6 {[%clk 0:02:07]} 17. Bb5 {[%clk 0:02:13]}  Rg8 {[%clk 0:01:53]} 18. Rac1 {[%clk 0:02:07]}  a6 {[%clk 0:01:50]} 19. Bd3 {[%clk 0:02:03]}  Nb4 {[%clk 0:01:45]} 20. Bxh7 {[%clk 0:02:00]}  Bb5 {[%clk 0:01:36]} 21. Qe5 {[%clk 0:01:53]}  Rd8 {[%clk 0:01:33]} 22. Rfd1 {[%clk 0:01:51]}  Ka7 {[%clk 0:01:31]} 23. Rxd6 {[%clk 0:01:46]}  Rxd6 {[%clk 0:01:27]} 24. a3 {[%clk 0:01:32]}  Rd5 {[%clk 0:01:23]} 25. Qg7 {[%clk 0:01:23]}  Nd3 {[%clk 0:01:10]} 26. Bxd3 {[%clk 0:01:22]}  Bxd3 {[%clk 0:01:04]} 27. Qxh6 {[%clk 0:01:10]}  Be4 {[%clk 0:00:55]} 28. Qe3 {[%clk 0:01:02]}  Qxe3 {[%clk 0:00:51]} 29. fxe3 {[%clk 0:01:01]}  Rd3 {[%clk 0:00:48]} 30. Kf2 {[%clk 0:00:43]}  f6 {[%clk 0:00:46]} 31. Rc3 {[%clk 0:00:38]}  Rd1 {[%clk 0:00:42]} 32. h4 {[%clk 0:00:34]}  Rb1 {[%clk 0:00:39]} 33. Rb3 {[%clk 0:00:32]}  Bd5 {[%clk 0:00:38]} 34. Rb4 {[%clk 0:00:29]}  a5 {[%clk 0:00:38]} 35. Rb5 {[%clk 0:00:29]}  b6 {[%clk 0:00:38]} 36. h5 {[%clk 0:00:22]}  Ka6 {[%clk 0:00:37]} 37. Nd4 {[%clk 0:00:22]}  Rh1 {[%clk 0:00:34]} 38. g4 {[%clk 0:00:21]}  Bc4 {[%clk 0:00:23]} 39. a4 {[%clk 0:00:17]}  e5 {[%clk 0:00:21]} 40. b3 {[%clk 0:00:14]}  Bxb5 {[%clk 0:00:20]} 41. axb5+ {[%clk 0:00:14]}  Kb7 {[%clk 0:00:20]} 42. Nf5 {[%clk 0:00:12]}  Kc7 {[%clk 0:00:19]} 43. h6 {[%clk 0:00:10]}  Kd7 {[%clk 0:00:12]} 44. Kg2 {[%clk 0:00:09]}  Rc1 {[%clk 0:00:12]} 45. Nh4 {[%clk 0:00:02]}  Rc8 {[%clk 0:00:10]} 46. Ng6 {[%clk 0:00:01]}  Ke6 {[%clk 0:00:08]} 47. h7 {[%clk 0:00:02]}  Kd5 {[%clk 0:00:04]} 48. h8=Q {[%clk 0:00:03]}  Rxh8 {[%clk 0:00:03]} 49. Nxh8 {[%clk 0:00:04]}  Kc5 {[%clk 0:00:04]} 50. Kf3 {[%clk 0:00:03]}  Kb4 {[%clk 0:00:04]} 51. Ke4 {[%clk 0:00:04]}  Kxb3 {[%clk 0:00:05]} 52. Kf5 {[%clk 0:00:04]}  a4 {[%clk 0:00:05]} 53. Kxf6 {[%clk 0:00:05]}  a3 {[%clk 0:00:06]} 54. g5 {[%clk 0:00:06]}  a2 {[%clk 0:00:06]} 55. g6 {[%clk 0:00:07]}  a1=Q {[%clk 0:00:06]} 56. g7 {[%clk 0:00:07]}  e4+ {[%clk 0:00:07]} 57. Kf7 {[%clk 0:00:07]}  Qf1+ {[%clk 0:00:07]} 58. Ke8 {[%clk 0:00:07]}  Qc4 {[%clk 0:00:06]} 59. Kf8 {[%clk 0:00:07]}  Qc8+ {[%clk 0:00:06]} 60. Kf7 {[%clk 0:00:07]}  Qd7+ {[%clk 0:00:07]} 61. Kf8 {[%clk 0:00:07]}  Qd6+ {[%clk 0:00:07]} 62. Kf7 {[%clk 0:00:07]}  Qd7+ {[%clk 0:00:07]} 63. Kf8 {[%clk 0:00:07]}  Qd6+ {[%clk 0:00:07]} 64. Kf7 {[%clk 0:00:07]}  Qc7+ {[%clk 0:00:08]} 65. Kg6 {[%clk 0:00:08]}  Qd6+ {[%clk 0:00:08]} 66. Kh7 {[%clk 0:00:08]}  Qd7 {[%clk 0:00:08]} 67. Kg6 {[%clk 0:00:07]}  Qe6+ {[%clk 0:00:08]} 68. Kh7 {[%clk 0:00:07]}  Kc3 {[%clk 0:00:07]} 69. g8=Q {[%clk 0:00:06]}  Qxg8+ {[%clk 0:00:07]} 70. Kxg8 {[%clk 0:00:07]}  Kd3 {[%clk 0:00:07]} 71. Nf7 {[%clk 0:00:07]}  Kxe3 {[%clk 0:00:08]} 72. Ne5 {[%clk 0:00:06]}  Kd4 {[%clk 0:00:08]} 73. Nd7 {[%clk 0:00:06]}  e3 {[%clk 0:00:07]} 74. Nxb6 {[%clk 0:00:06]}  e2 {[%clk 0:00:08]} 75. Nd7 {[%clk 0:00:06]}  e1=Q {[%clk 0:00:08]} 76. Nf6 {[%clk 0:00:06]}  Qe6+ {[%clk 0:00:07]} 77. Kg7 {[%clk 0:00:06]}  Qb6 {[%clk 0:00:08]} 78. Kf7 {[%clk 0:00:05]}  Qxb5 {[%clk 0:00:08]} 79. Ke6 {[%clk 0:00:05]}  Qb6+ {[%clk 0:00:08]} 80. Ke7 {[%clk 0:00:05]}  Qc6 {[%clk 0:00:08]} 81. Kf7 {[%clk 0:00:04]}  Ke5 {[%clk 0:00:08]} 82. Ne8 {[%clk 0:00:04]}  Qe6+ {[%clk 0:00:07]} 83. Kf8 {[%clk 0:00:04]}  Qd7 {[%clk 0:00:07]} 84. Ng7 {[%clk 0:00:03]}  Kf6 {[%clk 0:00:08]} 85. Nh5+ {[%clk 0:00:03]}  Kg6 {[%clk 0:00:08]} 86. Nf4+ {[%clk 0:00:03]}  Kf5 {[%clk 0:00:08]} 87. Nh5 {[%clk 0:00:03]}  Kg5 {[%clk 0:00:08]} 0-1


[Site "https://www.chess.com"]

[Event "Titled Tuesday Blitz April 26 Late 2022"]
[White "Romanchuk, Viktor"]
[Black "Zlatin, Alexander"]
[WhiteFideId "14109271"]
[BlackFideId "2810549"]
[WhiteElo "2242"]
[BlackElo "2228"]
[Result "0-1"]
[Round "10"]
[TimeControl "180+1"]
[Date "2022.04.26"]
[WhiteClock "0:00:21"]
[BlackClock "0:01:03"]

1. d4 {[%clk 0:03:00]}  d5 {[%clk 0:03:00]} 2. c4 {[%clk 0:03:00]}  e6 {[%clk 0:03:00]} 3. Nc3 {[%clk 0:03:00]}  c5 {[%clk 0:03:00]} 4. cxd5 {[%clk 0:02:59]}  cxd4 {[%clk 0:03:01]} 5. Qa4+ {[%clk 0:02:57]}  Bd7 {[%clk 0:03:01]} 6. Qxd4 {[%clk 0:02:58]}  exd5 {[%clk 0:03:02]} 7. Qxd5 {[%clk 0:02:57]}  Nc6 {[%clk 0:03:03]} 8. Nf3 {[%clk 0:02:57]}  Nf6 {[%clk 0:03:03]} 9. Qd1 {[%clk 0:02:57]}  Bc5 {[%clk 0:03:03]} 10. e3 {[%clk 0:02:57]}  Qe7 {[%clk 0:03:04]} 11. Be2 {[%clk 0:02:58]}  O-O-O {[%clk 0:03:04]} 12. O-O {[%clk 0:02:58]}  Kb8 {[%clk 0:03:03]} 13. Nd4 {[%clk 0:02:57]}  Bd6 {[%clk 0:02:52]} 14. Ncb5 {[%clk 0:02:52]}  Nxd4 {[%clk 0:02:45]} 15. Nxd4 {[%clk 0:02:46]}  Ne4 {[%clk 0:02:37]} 16. Bd2 {[%clk 0:02:34]}  Rhe8 {[%clk 0:02:25]} 17. Rc1 {[%clk 0:02:26]}  Qe5 {[%clk 0:02:10]} 18. f4 {[%clk 0:02:12]}  Qe7 {[%clk 0:02:02]} 19. Ba5 {[%clk 0:02:11]}  Rc8 {[%clk 0:02:01]} 20. Rxc8+ {[%clk 0:02:03]}  Rxc8 {[%clk 0:01:58]} 21. Bf3 {[%clk 0:02:01]}  Nc5 {[%clk 0:01:50]} 22. Bd2 {[%clk 0:01:33]}  g5 {[%clk 0:01:37]} 23. fxg5 {[%clk 0:01:03]}  Qxg5 {[%clk 0:01:33]} 24. e4 {[%clk 0:01:03]}  Qe5 {[%clk 0:01:28]} 25. Be3 {[%clk 0:00:46]}  Qxh2+ {[%clk 0:01:26]} 26. Kf2 {[%clk 0:00:47]}  Qh4+ {[%clk 0:01:11]} 27. Ke2 {[%clk 0:00:46]}  Nxe4 {[%clk 0:01:10]} 28. Bxe4 {[%clk 0:00:35]}  Qxe4 {[%clk 0:01:11]} 29. Qd3 {[%clk 0:00:22]}  Bg4+ {[%clk 0:01:05]} 30. Kd2 {[%clk 0:00:21]}  Bb4+ {[%clk 0:01:03]} 0-1


[Site "https://www.chess.com"]

[Event "Titled Tuesday Blitz April 26 Late 2022"]
[White "Romero Ruscalleda, Josep"]
[Black "Jegorovas, Aleksandras"]
[WhiteFideId "2231859"]
[BlackFideId "12801950"]
[WhiteElo "2330"]
[BlackElo "2247"]
[Result "1-0"]
[Round "10"]
[TimeControl "180+1"]
[Date "2022.04.26"]
[WhiteClock "0:00:59"]
[BlackClock "0:01:20"]

1. e4 {[%clk 0:02:59]}  e6 {[%clk 0:02:59]} 2. d4 {[%clk 0:02:59]}  d5 {[%clk 0:02:59]} 3. e5 {[%clk 0:02:59]}  c5 {[%clk 0:02:59]} 4. c3 {[%clk 0:02:59]}  Nc6 {[%clk 0:03:00]} 5. Be3 {[%clk 0:02:58]}  cxd4 {[%clk 0:02:58]} 6. cxd4 {[%clk 0:02:58]}  f6 {[%clk 0:02:59]} 7. exf6 {[%clk 0:02:57]}  Nxf6 {[%clk 0:02:58]} 8. Nc3 {[%clk 0:02:58]}  Bd6 {[%clk 0:02:58]} 9. Bd3 {[%clk 0:02:55]}  O-O {[%clk 0:02:58]} 10. a3 {[%clk 0:02:51]}  e5 {[%clk 0:02:55]} 11. dxe5 {[%clk 0:02:46]}  Nxe5 {[%clk 0:02:54]} 12. Bc2 {[%clk 0:02:40]}  Nfg4 {[%clk 0:02:30]} 13. Qxd5+ {[%clk 0:02:34]}  Be6 {[%clk 0:02:29]} 14. Qxe6+ {[%clk 0:02:33]}  Kh8 {[%clk 0:02:26]} 15. O-O-O {[%clk 0:02:31]}  Rf6 {[%clk 0:02:17]} 16. Qd5 {[%clk 0:02:19]}  Qe7 {[%clk 0:02:16]} 17. Bg5 {[%clk 0:02:15]}  Bxa3 {[%clk 0:02:15]} 18. Bxf6 {[%clk 0:02:07]}  Nxf6 {[%clk 0:02:14]} 19. Qb3 {[%clk 0:01:59]}  Bb4 {[%clk 0:02:08]} 20. Nd5 {[%clk 0:01:56]}  Nxd5 {[%clk 0:02:07]} 21. Rxd5 {[%clk 0:01:56]}  a5 {[%clk 0:02:04]} 22. Nf3 {[%clk 0:01:51]}  a4 {[%clk 0:02:02]} 23. Qe3 {[%clk 0:01:41]}  a3 {[%clk 0:01:58]} 24. bxa3 {[%clk 0:01:22]}  Bxa3+ {[%clk 0:01:30]} 25. Kd1 {[%clk 0:01:21]}  Bd6 {[%clk 0:01:20]} 26. Nxe5 {[%clk 0:01:03]}  Ra1+ {[%clk 0:01:20]} 27. Ke2 {[%clk 0:01:03]}  Rxh1 {[%clk 0:01:20]} 28. Rxd6 {[%clk 0:00:59]} 1-0


[Site "https://www.chess.com"]